Cogmind - Beta 12 @@@ ROGUE MODE // 2023.10.18 @ 14:04:08 Player: Figgis Result: Self-destructed Performance ------------- Evolutions (4) 2000 Regions Visited (10) 2000 Robots Destroyed (86) 430 Value Destroyed (3152) 3152 Prototype IDs (36) 720 Alien Tech Used (0) 0 Bonus (807) 807 TOTAL SCORE: 9109 Bonus ------- High Alert Combat Kills 408 Follower Combat Kills 99 Aligned with FarCom 300 Cogmind --------- Core Integrity 437/850 Matter 60/300 Energy 107/200 System Corruption 10% Temperature Cool (22) Movement Flying (96) Ox1 Location -6/Lower Caves Parts ------- > --- POWER (2) -------- Cold Fusion Reactor > --- PROPULSION (6) --- VTOL Module Cesium-ion Thruster Surge Thruster Cooled Cesium-ion Thruster > --- UTILITY (4) ------ Medium Storage Unit > --- WEAPON (3) ------- Power Sword > --- INVENTORY (10) --- Light Angular Momentum Engine Light Fission Core Matter Compressor (0) Advanced Sensor Array Transmission Jammer Improved Shield Generator Improved Shield Generator Thief Drone Bay (3/3) Micro-nuke Launcher Dual-blade Saw Peak State ------------ > --- POWER ------------ Micro Nuclear Core Light Angular Momentum Engine > --- PROPULSION ------- Cesium-ion Thruster Cesium-ion Thruster Xenon Bombardment Thruster Xenon Bombardment Thruster Xenon Bombardment Thruster Cooled Cesium-ion Thruster > --- UTILITY ---------- Medium Storage Unit Advanced Weight Redist. System Advanced Targeting Computer > --- WEAPON ----------- YOLO Cannon Magnetic Acceleration Cannon > --- INVENTORY -------- Micro Nuclear Core Cesium-ion Thruster Matter Compressor Advanced Sensor Array Transmission Jammer Improved Propulsion Shielding Improved Shield Generator Improved Shield Generator Thief Drone Bay Mini Assault Cannon [Rating: 69] Favorites ----------- Power Micro Nuclear Core Engine Light Ion Engine Power Core Micro Nuclear Core Reactor Cold Fusion Reactor Propulsion Light Treads Treads Light Treads Leg Improved Titanium Leg Flight Unit Xenon Bombardment Thruster Utility Advanced Weight Redist. System Device Advanced Weight Redist. System Storage High-capacity Storage Unit Processor Improved Targeting Computer Hackware System Shield Protection Light Armor Plating Weapon Assault Rifle Energy Gun AWS/Thermal Energy Cannon YOLO Cannon Ballistic Gun Assault Rifle Ballistic Cannon Advanced Assault Cannon Launcher Micro-nuke Launcher Slashing Weapon Power Sword Piercing Weapon Makeshift Spear Build | -11 -10 -10 -10 -9 -8 -7 -6 -6 -6 -6 ------- Run | Jun Mat Min Exi Min Mat Fac Fac Was Fac Low Slots Evolved 8 | . . . . . 4 2 2 . . . Power 1 | . . . . . . . 1 . . . Propulsion 4 | . . . . . 1 2 1 . . . Utility 2 | . . . . . 2 . . . . . Weapon 1 | . . . . . 1 . . . . . Parts Attached 106 | 6 5 2 4 5 26 29 18 4 6 1 Power 19 | 1 . 1 . 1 3 4 6 1 2 . Engine 7 | 1 . 1 . 1 . 1 2 1 . . Core 11 | . . . . . 3 3 4 . 1 . Reactor 1 | . . . . . . . . . 1 . Propulsion 35 | 2 1 . 1 1 8 12 5 2 2 1 Treads 7 | 2 1 . 1 1 2 . . . . . Leg 3 | . . . . . 3 . . . . . Wheel . | . . . . . . . . . . . Hover . | . . . . . . . . . . . Flight 25 | . . . . . 3 12 5 2 2 1 Utility 28 | 1 2 . 2 . 8 10 4 . 1 . Device 9 | . . . . . 4 3 1 . 1 . Storage 4 | 1 1 . 1 . . 1 . . . . Processor 3 | . . . . . 2 1 . . . . Hackware 1 | . . . . . . . 1 . . . Protection 11 | . 1 . 1 . 2 5 2 . . . Artifact . | . . . . . . . . . . . Weapon 24 | 2 2 1 1 3 7 3 3 1 1 . Energy Gun 6 | . . . 1 . 5 . . . . . Energy Cannon 2 | . . . . . . 2 . . . . Ballistic Gun 7 | 2 2 . . 2 1 . . . . . Ballistic Cannon 5 | . . . . . 1 1 3 . . . Launcher 2 | . . . . 1 . . . 1 . . Special Weapon . | . . . . . . . . . . . Impact Weapon . | . . . . . . . . . . . Slashing Weapon 1 | . . . . . . . . . 1 . Piercing Weapon 1 | . . 1 . . . . . . . . Special Melee Weapon . | . . . . . . . . . . . Unidentified Prototypes 7 | . . . . . 3 1 2 . 1 . Parts Lost 19 | . . 1 . 3 2 1 2 3 4 3 Power 5 | . . 1 . 1 . . 1 1 1 . Propulsion 8 | . . . . 1 1 1 . 1 2 2 Utility 3 | . . . . . 1 . . . 1 1 Weapon 3 | . . . . 1 . . 1 1 . . Highest Loss Streak 3 | . . 1 . 3 2 1 1 3 2 2 To Critical Strikes . | . . . . . . . . . . . Average Slot Usage (%) 90 | . 89 99 100 98 87 86 85 82 73 56 Engine 7 | . 14 13 14 13 3 . . 6 4 . Core 3 | . . . . . 5 6 11 4 . . Treads 14 | . 27 28 28 28 6 . . . . . Leg 5 | . . . . . 19 . . . . . Flight 10 | . . . . . . 38 40 40 36 29 Device 5 | . . . . . 10 10 6 6 7 6 Storage 10 | . 14 14 14 14 9 7 6 6 6 6 Processor 3 | . . . . . 7 7 6 6 4 . Protection 7 | . 4 14 14 14 6 3 5 6 2 . Energy Gun 5 | . . . 8 13 11 . . . . . Energy Cannon 1 | . . . . . . 6 6 . . . Ballistic Gun 9 | . 28 22 5 13 1 . . . . . Ballistic Cannon 1 | . . . . . 4 2 . . . . Piercing Weapon 1 | . . 5 14 . . . . . . . Naked Turns . | . . . . . . . . . . . Heaviest Build 71 | 11 30 32 53 60 63 71 45 38 38 25 Greatest Support 69 | 40 40 40 40 40 69 38 43 43 43 35 Greatest Overweight (x) 2 | 2 . . 1 1 2 2 1 . . . Average Overweight (x) . | . . . . 1 . . . . . . Largest Inventory Capacity 20 | 8 15 15 20 20 20 20 10 10 10 10 Average Capacity 15 | 6 13 15 15 20 20 13 10 10 10 10 Most Carried 20 | 5 8 15 15 18 20 19 10 10 10 10 Average Carried 13 | 2 4 11 14 16 19 12 9 8 9 9 Final Capacity 20 | 8 15 15 20 20 20 10 10 10 10 10 Final Carried 20 | 2 8 15 15 14 20 10 10 9 9 10 Class Distribution -------------------- 39% | Mutant 19% | Sprinter 18% | Skirmisher 13% | Scavenger-Mutant 6% | Scavenger-Skirmisher Dominant Class ---------------- Mutant | -10/Materials Mutant | -10/Mines Scavenger-Mutant | -10/Exiles Scavenger-Mutant | -9/Mines Skirmisher | -8/Materials Sprinter | -7/Factory Sprinter | -6/Factory Sprinter | -6/Waste Sprinter | -6/Factory Sprinter | -6/Lower Caves Resources | -11 -10 -10 -10 -9 -8 -7 -6 -6 -6 -6 ----------- Run | Jun Mat Min Exi Min Mat Fac Fac Was Fac Low Matter Collected 1618 | 257 160 98 . 116 639 229 97 . . 22 Remotely . | . . . . . . . . . . . Salvage Created 3010 | . 345 59 . 128 1691 743 44 . . . Parts 177 | . 27 4 . 3 86 52 5 . . . Haulers Intercepted 6 | . 2 . . . 3 1 . . . . Recyclers Shooed 2 | . . 1 . . 1 . . . . . Parts Field Recycled . | . . . . . . . . . . . Retrieved Matter . | . . . . . . . . . . . Parts Self-Destructed . | . . . . . . . . . . . Prevented . | . . . . . . . . . . . Kills | -11 -10 -10 -10 -9 -8 -7 -6 -6 -6 -6 ------- Run | Jun Mat Min Exi Min Mat Fac Fac Was Fac Low Combat Hostiles Destroyed 71 | . 9 2 . 13 26 19 2 . . . Melee 1 | . . 1 . . . . . . . . Guns 44 | . 9 1 . 8 21 5 . . . . Cannons 10 | . . . . . 5 5 . . . . AOE 14 | . . . . 5 . 7 2 . . . Classes Destroyed 17 | . 4 . . 1 7 4 1 . . . Worker 5 | . . . . . . 5 . . . . Builder 2 | . . . . . 1 1 . . . . Tunneler 1 | . . . . . . 1 . . . . Hauler 6 | . 2 . . . 3 1 . . . . Recycler 1 | . . . . . 1 . . . . . Operator 3 | . 1 . . . . 2 . . . . Watcher 9 | . . . . . 5 4 . . . . Swarmer 14 | . 6 1 . . . 7 . . . . Cutter 2 | . . . . . . . 2 . . . Grunt 24 | . 3 1 . 1 13 6 . . . . Brawler 1 | . . . . . 1 . . . . . Duelist 1 | . . . . . 1 . . . . . Protector 1 | . . . . . . 1 . . . . Sentry 11 | . . . . . 8 3 . . . . Hunter 4 | . . . . . 3 1 . . . . Programmer 1 | . . . . . . 1 . . . . Assembled 12 | . . . . 12 . . . . . . Best Kill Streak 12 | . 3 1 . 12 11 7 2 . . . Combat Bots Only 12 | . 3 1 . 12 5 6 2 . . . Max Kills in Single Turn 4 | . 1 1 . 4 2 4 2 . . . Gunslinging . | . . . . . . . . . . . Exploded 4 | . . . . 4 . 3 2 . . . Melee 1 | . . 1 . . . . . . . . Uniques/NPCs Destroyed . | . . . . . . . . . . . Combat | -11 -10 -10 -10 -9 -8 -7 -6 -6 -6 -6 -------- Run | Jun Mat Min Exi Min Mat Fac Fac Was Fac Low Damage Taken 3603 | . 242 240 . 499 662 606 578 40 575 161 Core 779 | . 48 42 . 21 74 181 114 . 268 31 Absorbed by Shields 141 | . . . . . . 21 63 . 57 . Redirected to Shielding 231 | . . . . . 51 73 94 . 13 . Regen/Repaired (Parts) 200 | . 61 . . . 15 95 . . 29 . Core Remaining (%) 78 | 100 . . . 55 86 74 . . . . Volleys Fired 129 | . 41 4 . 8 58 17 1 . . . Largest 2 | . 2 2 . 2 1 2 1 . . . Hottest 148 | . 40 40 . 85 55 148 100 . . . Shots Fired 326 | . 82 8 . 34 167 34 1 . . . Gun 272 | . 82 8 . 32 138 12 . . . . Cannon 52 | . . . . . 29 22 1 . . . Launcher 2 | . . . . 2 . . . . . . Special . | . . . . . . . . . . . Kinetic 174 | . 82 8 . 27 50 7 . . . . Thermal 150 | . . . . 5 117 27 1 . . . Explosive 2 | . . . . 2 . . . . . . Electromagnetic . | . . . . . . . . . . . Robot Hit Streak 16 | . 7 2 . 7 16 11 . . . . Robot Miss Streak 4 | . 4 4 . 3 4 2 . . . . Penetration Max . | . . . . . . . . . . . Secondary Targets . | . . . . . . . . . . . Autonomous 142 | . . . . 19 110 13 . . . . Shots Hit Robots 232 | . 46 9 . 23 130 24 . . . . Core Hits 124 | . 21 2 . 19 51 29 2 . . . Critical Kills 1 | . . . . . . 1 . . . . Critical Parts Destroyed . | . . . . . . . . . . . Critical Strikes 2 | . . . . . 1 1 . . . . Meltdown 1 | . . . . . . 1 . . . . Blast 1 | . . . . . 1 . . . . . Melee Attacks 11 | . . 10 . . . . . . 1 . Impact . | . . . . . . . . . . . Slashing 1 | . . . . . . . . . 1 . Piercing 10 | . . 10 . . . . . . . . Sneak Attacks . | . . . . . . . . . . . Combat Hostiles . | . . . . . . . . . . . Follow-up Attacks . | . . . . . . . . . . . Damage Inflicted 9103 | . 506 196 . 974 3573 3748 106 . . . Guns 4461 | . 506 56 . 562 3042 295 . . . . Cannons 1948 | . . . . . 521 1427 . . . . Explosions 2544 | . . . . 412 . 2026 106 . . . Melee 140 | . . 140 . . . . . . . . Ramming 10 | . . . . . 10 . . . . . Kinetic 2135 | . 506 56 . 502 1016 55 . . . . Thermal 5880 | . . . . 60 2547 3167 106 . . . Explosive 938 | . . . . 412 . 526 . . . . Electromagnetic . | . . . . . . . . . . . Impact . | . . . . . . . . . . . Slashing . | . . . . . . . . . . . Piercing 140 | . . 140 . . . . . . . . Highest Corruption 10 | . . . . 6 1 . . 10 10 10 Average Corruption 4 | . . . . 6 1 . . 10 10 10 Corruption Purged . | . . . . . . . . . . . Corruption Blocked . | . . . . . . . . . . . Effects 23 | . . . . 1 3 . . 2 13 4 Message Errors 2 | . . . . . 1 . . . . 1 Matter Fused 4 | . . . . . 1 . . . 3 . Heat Flow Errors 3 | . . . . . . . . . 2 1 Energy Discharges 3 | . . . . . . . . . 2 1 Data Loss (minor) 3 | . . . . 1 1 . . . . 1 Data Loss (major) 1 | . . . . . . . . . 1 . Misdirections 7 | . . . . . . . . 2 5 . Overload Shots . | . . . . . . . . . . . Overflow Damage 630 | . . . . 20 . 603 7 . . . Projectiles 454 | . . . . . . 454 . . . . Explosions 176 | . . . . 20 . 149 7 . . . Melee . | . . . . . . . . . . . Knockbacks . | . . . . . . . . . . . Impact . | . . . . . . . . . . . Kinetic . | . . . . . . . . . . . Secondary . | . . . . . . . . . . . Self-Inflicted Damage 142 | . . . . . . 142 . . . . Shots 3 | . . . . . . 3 . . . . Rammed . | . . . . . . . . . . . Targets Rammed 1 | . . . . . 1 . . . . . Kicked 1 | . . . . . 1 . . . . . Crushed . | . . . . . . . . . . . Highest Temperature 579 | . 12 . . 99 86 100 252 120 579 127 Average Temperature 58 | . 7 . . 37 25 12 95 71 130 62 Received Heat Transfer 681 | . 87 120 . . 144 138 114 . 42 36 Effects 6 | . . . . . . . 2 . 4 . Shutdowns 1 | . . . . . . . . . 1 . Interference 2 | . . . . . . . 2 . . . Short Circuit 1 | . . . . . . . . . 1 . Damage (major) 1 | . . . . . . . . . 1 . Damage (core) 1 | . . . . . . . . . 1 . Siege Activations . | . . . . . . . . . . . Robots Corrupted . | . . . . . . . . . . . Combat Hostiles . | . . . . . . . . . . . Parts Fried . | . . . . . . . . . . . Impact Corruptions . | . . . . . . . . . . . Robots Melted 2 | . . . . . . 2 . . . . Combat Hostiles 2 | . . . . . . 2 . . . . Parts Melted 9 | . . . . . 3 6 . . . . Heat Transferred 6603 | . . . . 148 3515 2860 80 . . . Parts Sabotaged . | . . . . . . . . . . . Parts Stolen . | . . . . . . . . . . . Parts Stripped . | . . . . . . . . . . . Power Chain Reactions 2 | . . . . . . 2 . . . . Missiles Intercepted . | . . . . . . . . . . . Alert | -11 -10 -10 -10 -9 -8 -7 -6 -6 -6 -6 ------- Run | Jun Mat Min Exi Min Mat Fac Fac Was Fac Low Peak Influence 1817 | . 179 61 . 37 462 1817 1234 484 748 . Initial 889 | . . 10 . . . 210 889 424 317 . Average 332 | . 85 30 . 1 197 1017 1018 440 433 . Maximum Alert Level 5 | . . . . . 2 5 4 2 3 . Low Security (%) 59 | 100 100 100 . 100 58 . . . . . Level 1 11 | . . . . . 27 7 . . 47 . Level 2 9 | . . . . . 13 17 . 100 49 . Level 3 10 | . . . . . . 37 72 . 3 . Level 4 6 | . . . . . . 26 27 . . . Level 5 1 | . . . . . . 10 . . . . High Security . | . . . . . . . . . . . Max Security . | . . . . . . . . . . . Squads Dispatched 17 | . . . . . 5 8 2 . 2 . Investigation 5 | . . . . . 2 2 . . 1 . Extermination . | . . . . . . . . . . . Reinforcement 7 | . . . . . 2 2 2 . 1 . Assault 4 | . . . . . . 4 . . . . Garrison 1 | . . . . . 1 . . . . . Intercept . | . . . . . . . . . . . Searches Triggered . | . . . . . . . . . . . Construction Impeded 1 | . . . . . . 1 . . . . Haulers Reinforced . | . . . . . . . . . . . Active Scanning Responses . | . . . . . . . . . . . Cargo Convoy Interrupts . | . . . . . . . . . . . Stealth | -11 -10 -10 -10 -9 -8 -7 -6 -6 -6 -6 --------- Run | Jun Mat Min Exi Min Mat Fac Fac Was Fac Low Distress Signals 3 | . 2 . . . . 1 . . . . Communications Jammed . | . . . . . . . . . . . Distress Signals . | . . . . . . . . . . . Times Spotted 187 | . 21 8 . 22 37 51 14 5 28 1 Peak Tracking Total 16 | . 5 3 . 14 5 16 6 5 12 1 Tactical Retreats 24 | . 1 1 . 1 1 7 5 . 8 . Traps | -11 -10 -10 -10 -9 -8 -7 -6 -6 -6 -6 ------- Run | Jun Mat Min Exi Min Mat Fac Fac Was Fac Low Traps Triggered 6 | . . . . . . 1 3 . 2 . Indirectly . | . . . . . . . . . . . Trap Hack Attempts . | . . . . . . . . . . . Triggered . | . . . . . . . . . . . Disarmed . | . . . . . . . . . . . Reprogrammed . | . . . . . . . . . . . Reused . | . . . . . . . . . . . Traps Extracted . | . . . . . . . . . . . Installed . | . . . . . . . . . . . Triggered . | . . . . . . . . . . . Exploded 2 | . . . 2 . . . . . . . Machines | -11 -10 -10 -10 -9 -8 -7 -6 -6 -6 -6 ---------- Run | Jun Mat Min Exi Min Mat Fac Fac Was Fac Low Machines Disabled 35 | . . . . . 2 32 1 . . . Max in Single Turn 9 | . . . . . 1 9 1 . . . Garrison Access 4 | . . . . . 1 3 . . . . Machines Repaired . | . . . . . . . . . . . Machines Sabotaged . | . . . . . . . . . . . Overloaded Fab Kills . | . . . . . . . . . . . Hacking | -11 -10 -10 -10 -9 -8 -7 -6 -6 -6 -6 --------- Run | Jun Mat Min Exi Min Mat Fac Fac Was Fac Low Machines Accessed 36 | . 8 . 2 1 10 10 3 . 2 . Terminals 19 | . 6 . . . 7 4 2 . . . Fabricators . | . . . . . . . . . . . Repair Stations 5 | . 1 . . . 1 2 . . 1 . Recycling Units 2 | . 1 . . . . 1 . . . . Scanalyzers 4 | . . . . . 1 1 1 . 1 . Garrison Access 3 | . . . . . 1 2 . . . . Total Hacks 78 | . 20 . 2 1 24 23 4 . 4 . Successful 34 | . 6 . 2 1 10 12 . . 3 . Failed 44 | . 14 . . . 14 11 4 . 1 . Catastrophic 8 | . 2 . . . 3 2 1 . . . Database Lockouts . | . . . . . . . . . . . Manual 30 | . 10 . 1 . 13 4 2 . . . Terminals 43 | . 15 . . . 18 7 3 . . . Fabricators . | . . . . . . . . . . . Repair Stations 17 | . 3 . . . 2 9 . . 3 . Recycling Units 3 | . 2 . . . . 1 . . . . Scanalyzers 7 | . . . . . 3 2 1 . 1 . Garrison Access 5 | . . . . . 1 4 . . . . Terminal Hacks 12 | . 3 . 2 1 4 2 . . . . Record 1 | . . . 1 . . . . . . . Robot Analysis 6 | . 2 . . . 3 1 . . . . Prototype ID Bank 2 | . 1 . . . . 1 . . . . Open Door 1 | . . . . 1 . . . . . . Branch Access Points 1 | . . . . . 1 . . . . . EX-Prototype ID Bank 1 | . . . 1 . . . . . . . Fabricator Hacks . | . . . . . . . . . . . Repair Station Hacks 14 | . 2 . . . 2 7 . . 3 . Scan Component 8 | . 1 . . . 1 4 . . 2 . Repair 6 | . 1 . . . 1 3 . . 1 . Recycling Unit Hacks 2 | . 1 . . . . 1 . . . . Report Inventory 2 | . 1 . . . . 1 . . . . Scanalyzer 4 | . . . . . 3 1 . . . . Insert Component 3 | . . . . . 2 1 . . . . Analyze 1 | . . . . . 1 . . . . . Garrison Access Hacks 2 | . . . . . 1 1 . . . . Seal Access 2 | . . . . . 1 1 . . . . Unauthorized Hacks . | . . . . . . . . . . . Terminals . | . . . . . . . . . . . Fabricators . | . . . . . . . . . . . Repair Stations . | . . . . . . . . . . . Recycling Units . | . . . . . . . . . . . Scanalyzers . | . . . . . . . . . . . Garrison Access . | . . . . . . . . . . . Data Cores Recovered 2 | . 1 . . . . 1 . . . . Used . | . . . . . . . . . . . Hacking Detections 29 | . 8 . . . 8 8 3 . 2 . Full Trace Events 5 | . . . . . 2 2 . . 1 . Feedback Events 1 | . . . . . 1 . . . . . Corruption 1 | . . . . . 1 . . . . . Feedback Blocked . | . . . . . . . . . . . Robot Schematics Acquired . | . . . . . . . . . . . Robots Built . | . . . . . . . . . . . Authchips . | . . . . . . . . . . . Time . | . . . . . . . . . . . Total Robot Build Rating . | . . . . . . . . . . . Part Schematics Acquired 1 | . . . . . 1 . . . . . Parts Built . | . . . . . . . . . . . Authchips . | . . . . . . . . . . . Time . | . . . . . . . . . . . Total Part Build Rating . | . . . . . . . . . . . Parts Repaired 6 | . 1 . . . 1 3 . . 1 . Time 240 | . 26 . . . 44 126 . . 44 . Parts Recycled . | . . . . . . . . . . . Recycled Matter . | . . . . . . . . . . . Retrieved Matter . | . . . . . . . . . . . Retrieved Components . | . . . . . . . . . . . Parts Scanalyzed 2 | . . . . . 1 1 . . . . Part Schematics Acquired 1 | . . . . . 1 . . . . . Parts Damaged . | . . . . . . . . . . . Bothacking | -11 -10 -10 -10 -9 -8 -7 -6 -6 -6 -6 ------------ Run | Jun Mat Min Exi Min Mat Fac Fac Was Fac Low Used RIF Installer . | . . . . . . . . . . . Robots Hacked . | . . . . . . . . . . . Non-combat . | . . . . . . . . . . . Combat . | . . . . . . . . . . . Robot Hacks Applied . | . . . . . . . . . . . Relay Couplers Released 1 | . . . . . . 1 . . . . Machine Destruction 1 | . . . . . . 1 . . . . Fabnet Peak Effective % . | . . . . . . . . . . . Robots Rewired . | . . . . . . . . . . . Allies Hacked . | . . . . . . . . . . . Hacks Repelled . | . . . . . . . . . . . Allies | -11 -10 -10 -10 -9 -8 -7 -6 -6 -6 -6 -------- Run | Jun Mat Min Exi Min Mat Fac Fac Was Fac Low Total Allies 3 | . . 3 . . . . . . . . Largest Group 3 | . . 3 2 2 . . . . . . Highest-Rated Group 40 | . . 40 32 32 . . . . . . Highest-Rated Ally 16 | . . 16 16 16 . . . . . . Total Orders . | . . . . . . . . . . . Ally Attacks 28 | . . 10 . 18 . . . . . . Total Damage 290 | . . 142 . 148 . . . . . . Kills 3 | . . 2 . 1 . . . . . . Allies Corrupted . | . . . . . . . . . . . Allies Melted . | . . . . . . . . . . . Intel | -11 -10 -10 -10 -9 -8 -7 -6 -6 -6 -6 ------- Run | Jun Mat Min Exi Min Mat Fac Fac Was Fac Low Robot Analysis Total 5 | . 2 . . . 2 1 . . . . Derelict Logs Recovered 3 | . . 2 . 1 . . . . . . Drone Launches . | . . . . . . . . . . . Drone Recoveries . | . . . . . . . . . . . Exploration | -11 -10 -10 -10 -9 -8 -7 -6 -6 -6 -6 ------------- Run | Jun Mat Min Exi Min Mat Fac Fac Was Fac Low Turns Passed 6677 | 45 1088 866 452 624 1815 1070 334 36 269 78 Spaces Moved 5705 | 34 550 500 251 240 1021 1257 758 109 694 291 Core 20 | 20 . . . . . . . . . . Treads 1729 | 14 550 500 251 240 174 . . . . . Legs 844 | . . . . . 844 . . . . . Wheels . | . . . . . . . . . . . Hover . | . . . . . . . . . . . Flight 3112 | . . . . . 3 1257 758 109 694 291 Fastest Speed 22 | 50 160 160 160 240 130 25 22 22 22 24 Average Speed 90 | 98 160 160 171 240 145 39 23 22 23 25 Slowest Speed 240 | 160 160 160 240 240 240 186 102 28 25 27 Overloaded Moves . | . . . . . . . . . . . Propulsion Burnouts . | . . . . . . . . . . . Robots Hopped 10 | . . . . . . 5 3 . 2 . Cave-ins Triggered 1 | . . . . 1 . . . . . . Exploration Rate (%) 49 | 4 79 94 60 52 75 37 21 76 24 27 Regions Visited 10 Branch Regions 4 Pre-discovered Areas 4 | . . 3 1 . . . . . . . Known Exits Taken . | . . . . . . . . . . . Unknown Exits Taken 8 | 1 1 1 1 1 1 1 . . 1 . Scrap Searched 3 | . . 1 . 1 . . . . . 1 Spaces Dug . | . . . . . . . . . . . Terrain Destroyed 305 | . . . . 27 28 238 12 . . . Melee . | . . . . . . . . . . . Projectile 46 | . . . . 13 28 4 1 . . . AOE 259 | . . . . 14 . 234 11 . . . Terrain Rammed . | . . . . . . . . . . . Walls Destroyed . | . . . . . . . . . . . Machines Disabled . | . . . . . . . . . . . Actions | -11 -10 -10 -10 -9 -8 -7 -6 -6 -6 -6 --------- Run | Jun Mat Min Exi Min Mat Fac Fac Was Fac Low Total 7018 | 45 686 547 275 273 1303 1777 903 120 796 293 Wait 891 | . 77 25 11 18 140 431 92 4 93 . Move 5676 | 33 549 499 250 239 1020 1246 752 108 689 291 Hop 10 | . . . . . . 5 3 . 2 . Pick Up 86 | 6 11 7 3 2 31 13 6 3 3 1 Fast Attach 16 | 2 . 1 . . 5 2 3 1 1 1 Attach 42 | 4 5 . . 3 10 8 5 3 4 . Detach 13 | . . . . 1 3 4 4 . 1 . Swap 48 | . . 1 4 2 11 19 10 . 1 . Drop 60 | . 3 . 7 . 24 18 6 1 1 . Fire 129 | . 41 4 . 8 58 17 1 . . . Melee 11 | . . 10 . . . . . . 1 . Ram . | . . . . . . . . . . . Kick 1 | . . . . . 1 . . . . . Crush . | . . . . . . . . . . . Escape Stasis 35 | . . . . . . 14 21 . . . Rewire . | . . . . . . . . . . . Trap . | . . . . . . . . . . . Miscellaneous . | . . . . . . . . . . . Route ------- -11/Junkyard -10/Materials (discovered 3 exits: [*Mat x2] / [*Min]) -10/Mines (discovered 3 exits: [*Mat x2] / *Exi) -10/Exiles -9/Mines (discovered 2 exits: *Mat x2) -8/Materials (discovered 2 exits: *Fac x2) -7/Factory (discovered 2 exits: *Fac / Sto) -6/Factory -6/Waste -6/Factory -6/Lower Caves History --------- Turn | Location | Event 11 | -11/Junkyard | Discovered new exit (range 15) 46 | -11/Junkyard | Entered Materials 300 | -10/Materials | Discovered new exit (range 12) 315 | -10/Materials | Build established: Mutant 669 | -10/Materials | Discovered new exit (range 16) 766 | -10/Materials | Repaired Lgt. Treads 832 | -10/Materials | Discovered new exit (range 5) 1134 | -10/Materials | Entered Mines 1152 | -10/Mines | Discovered new exit (range 12) 1261 | -10/Mines | Learned location of Storage (-7) 1324 | -10/Mines | A weapon hastily lodged in a ceiling crevice suddenly fell to the ground 1408 | -10/Mines | Discovered new exit (range 11) 1461 | -10/Mines | Deemed a non-threat by the Exiles lab entrance 1461 | -10/Mines | Discovered new exit (range 5) 1549 | -10/Mines | Joined a pair of Derelicts in attacking an 0b10 outpost 1610 | -10/Mines | Learned location of Recycling (-7) 1692 | -10/Mines | Assisted by bots powering up and referring to "LRC-V3" 1756 | -10/Mines | Learned location of Zion (-6) 2000 | -10/Mines | Entered Exiles 2000 | -10/Exiles | Accompanied by 2 allies 2039 | -10/Exiles | Met 8R-AWN 2063 | -10/Exiles | Met EX-HEX 2112 | -10/Exiles | Met EX-BIN 2132 | -10/Exiles | Aligned with FarCom system 2133 | -10/Exiles | Given EX-Vault access code 2170 | -10/Exiles | Opened EX-Vault 2196 | -10/Exiles | Found AWS/Gauss 2202 | -10/Exiles | Found AWS/Thermal 2216 | -10/Exiles | Found YOLO Cannon 2250 | -10/Exiles | Warned to stay clear of 0b10 Research branches 2253 | -10/Exiles | Exiles lab attacked by MAIN.C 2412 | -10/Exiles | Discovered new exit (range 14) 2452 | -10/Exiles | Stole three prototypes: AWS/Thermal, YOLO Cannon, AWS/Gauss 2452 | -10/Exiles | Entered Mines 2452 | -9/Mines | Accompanied by 2 allies 2463 | -9/Mines | Found the Drone Emporium 2474 | -9/Mines | Found Prototype Device 2477 | -9/Mines | Met a Derelict bent on vengeance 2511 | -9/Mines | Build established: Scavenger-Mutant 2681 | -9/Mines | Discovered new exit (range 8) 3012 | -9/Mines | Assembled infested the area 3017 | -9/Mines | Assisted by a Guerilla fighting off Assembled 3037 | -9/Mines | Crushed by falling debris 3063 | -9/Mines | Discovered new exit (range 12) 3076 | -9/Mines | Entered Materials 3076 | -8/Materials | Evolved 4 slots: Propulsion x1, Utility x2, Weapon x1 3086 | -8/Materials | Destroyed 12 combat bots 3094 | -8/Materials | Lost 3 parts (1p1n1w) 3100 | -8/Materials | Identified Thief Drone Bay 3414 | -8/Materials | Build established: Scavenger-Skirmisher 3648 | -8/Materials | Discovered new exit (range 16) 3847 | -8/Materials | Build established: Skirmisher 4391 | -8/Materials | Discovered new exit (range 4) 4537 | -8/Materials | Repaired Mic. Nuclear Core 4631 | -8/Materials | Garrison activated, responded to threat 4891 | -8/Materials | Entered Factory 4891 | -7/Factory | Evolved 2 slots: Propulsion x2 4892 | -7/Factory | Identified exit to Storage 4893 | -7/Factory | FarCom data flow suspended 5314 | -7/Factory | Repaired Xenon Bombardment Thruster 5361 | -7/Factory | Repaired Xenon Bombardment Thruster 5401 | -7/Factory | Repaired Imp. Propulsion Shielding 5581 | -7/Factory | Build established: Sprinter 5691 | -7/Factory | First assault squad dispatched 5941 | -7/Factory | Discovered new exit (range 8) 5961 | -7/Factory | Entered another Factory area 5961 | -6/Factory | Evolved 2 slots: Power x1, Propulsion x1 6295 | -6/Factory | Sucked down chute 6295 | -6/Factory | Entered Waste 6303 | -6/Waste | Spotted C-40 Crusher 6309 | -6/Waste | Spotted C-40 Crusher 6310 | -6/Waste | EMP discharged 6310 | -6/Waste | System corruption reached 10% 6317 | -6/Waste | Spotted C-40 Crusher 6317 | -6/Waste | Spotted C-40 Crusher 6322 | -6/Waste | Spotted C-40 Crusher 6324 | -6/Waste | Discovered new exit (range 16) 6324 | -6/Waste | Spotted C-40 Crusher 6325 | -6/Waste | Crushed by Compactor (1 part destroyed, 1 dropped) 6331 | -6/Waste | Entered Factory 6356 | -6/Factory | Lost 3 parts (1p1n1w) 6382 | -6/Factory | Repaired Xenon Bombardment Thruster 6556 | -6/Factory | Spotted B-75 Beast 6594 | -6/Factory | Discovered new exit (range 16) 6600 | -6/Factory | Entered Lower Caves 6603 | -6/Lower Caves | Spotted B-75 Beast 6678 | -6/Lower Caves | Self-destructed Last Messages --------------- 06585_ System corrupted: Matter fused (-10). 06594_ EXIT=FOUND 06596_ Triggered Heavy Explosive Trap. 06596_ An explosion rips through the floor. LOCATION=UNKNOWN GOAL=ESCAPE 06601_ Searching scrap... 06601_ Found Lgt. Angular Momentum Engine. 06601_ Found EM Disruption Field. 06601_ Found 22 Matter. 06602_ System corrupted: Component data lost. 06602_ Acquired Lgt. Angular Momentum Engine. 06622_ System corrupted: Heat flow error (+138). 06637_ EY6WR0B85AIBS#7|DIBAG2NPQ, 06638_ Xenon Bombardment Thruster destroyed. 06667_ Acquired 22 matter. 06673_ Acquired VTOL Module. 06675_ System corrupted: Energy discharge (-66). 06678_ Adv. Weight Redist. System destroyed. 06678_ Xenon Bombardment Thruster destroyed. Map ----- +----------------------------------------------------+ | ???????####???## ##?????????????????????## ### | | ??????## ##### ##????????????????????? | | ?????## #??????????????????????? | | ????## ##????????????????????????# | | ????# ### #####????#####?????????????????# | | ????# #?##########??### ##?????????????????# | | ???## ##?????## #? #????????????????## | | ?### ##????# ## #???????????????## | | ?# ###??# $ # ##??????????????# | | ?## #??# ###???? ??????# | | ??#### ##??## ###?? #????## | | ?###### ##????## * #?? ##????## | | ## #??????##### ## #?????## | | ##?????????# ##??? #??????# | | ### ##????????### ##????# ##?????# | | ### #??????????## #???## ##????# | | ##??####?????## ##?### #???## | | #??## #??????# ###?## #??## | | ### #### #??????#! #??## B #### | | # #??## ## ###????# #??# B "# | | ###???## ##???# #??# | | ??????# #???# #### "" | | ??????# ##??# #; #### | | ??????# ##?# % #??## | | ??????## ### ##### | | ???????## ###### @ #" | | ????????## ##????## ### #### | | ?????????####??????## ##?######??## | | ?????????????####??#; #???????????# ## ## | | ????????????## #### ##?????????# ######### | | ????????????# ### #?????????# ##??????# | | ???????????## ## #?????????####???????## | | ???????????# ## #?????????????????????# | | ???????????# #?????????????????????? | | ???????????# ##?????????????????????? | | ???????????# ##### ##??????????????????????? | | ???????????# ###???# ##???????????????????????? | | ???????????# ##?????###????????????????????????? | | ???????????# ##?????????????????????????????????? | | ???????????# #??????????????????????????????????? | | ???????????# #??????????????????????????????????? | | ???????????# ##??????????????????????????????????? | | ???????????##????????????????????????????????????? | | ?????????????????????????????????????????????????? | | ?????????????????????????????????????????????????? | | ?????????????????????????????????????????????????? | | ?????????????????????????????????????????????????? | | ?????????????????????????????????????????????????? | | ?????????????????????????????????????????????????? | | ?????????????????????????????????????????????????? | +----------------------------------------------------+ Best States ------------- Heat Dissipation 37 Energy Generation 31 Energy Capacity 265 Matter Stores 300 Matter Capacity 300 Sight Range 16 Terrain Scan Density 10 Additional Mass Support 9 Armor Coverage 150 Core Shielding 20 Propulsion Shielding 66 Utility Shielding 33 Evasion (%) 65 Targeting Accuracy 8 Recoil Reduction 3 Defensive Hacking 10 Item Schematics ----------------- Xenon Bombardment Thruster | -8/Materials | Scanalyzed Robot Schematics ------------------ None Fabricated ------------ Nothing Alien Tech Used ----------------- None Achievements -------------- None Challenges ------------ None Game ------ Seed ConcussivePotentialWand Manual? 0 Play Time 01:18:33 Cumulative 71.3 hours Start 2023.10.18 @ 00:52:46 End 2023.10.18 @ 14:04:08 Sessions 3 Manual Loads 0 Difficulty Rogue Special Mode None Game No. 117 Rogue 114 Adventurer 3 Explorer 0 Win Type - Total 0 Types 0/0/0/0/0/0/0/0/0 Lore% 34 Gallery% 50 Achievement% 36 Wizard Run 0 Options --------- ASCII 0 Keyboard 0 Movement Mouse Keybinds 0 Fullscreen 2 Font 18/SmallcapsGlow Map View 76x50 Tactical HUD 1 Map Filters NONE Filters NONE Steam 1 RUN: dd2a1a21-b10c-4cfa-a6b3-feef064b5d41